Cogmind - Beta 9.6 @@@ ROGUE MODE // 2020.07.28 @ 01:34:12 // Winter2019/RPGLIKE Player: FontPeg Result: Destroyed self with Rocket Launcher Performance ------------- Evolutions (0) 0 Regions Visited (2) 400 Robots Destroyed (15) 75 Value Destroyed (180) 180 Prototype IDs (0) 0 Alien Tech Used (0) 0 Bonus (0) 0 TOTAL SCORE: 655 Bonus ------- None Cogmind --------- Core Integrity 0/600 Matter 296/350 Energy 90/100 System Corruption 0% Temperature Cool (0) Movement Hovering (66) Location -10/Mines Parts ------- > --- POWER (1) -------- (None) > --- PROPULSION (2) --- Hover Unit Combat Airjet > --- UTILITY (1) ------ Structural Scanner > --- WEAPON (1) ------- Rocket Launcher > --- INVENTORY (3) ---- Signal Interpreter Medium Laser Mining Laser Peak State ------------ > --- POWER ------------ Light Ion Engine > --- PROPULSION ------- Wheel Combat Airjet > --- UTILITY ---------- Structural Scanner > --- WEAPON ----------- Rocket Launcher > --- INVENTORY -------- Signal Interpreter Medium Laser Mining Laser [Rating: 10] Favorites ----------- Power Light Ion Engine Engine Light Ion Engine Propulsion Wheel Wheel Wheel Hover Unit Hover Unit Utility Structural Scanner Device Structural Scanner Processor Seismic Analyzer Weapon Medium Laser Energy Gun Medium Laser Launcher Rocket Launcher Special Weapon Mining Laser Build | -11 -10 -10 ------- Run | Scr Mat Min Slots Evolved 1 | 1 . . Power . | . . . Propulsion 1 | 1 . . Utility . | . . . Weapon . | . . . Parts Attached 14 | 7 4 3 Power 2 | 1 1 . Engine 2 | 1 1 . Core . | . . . Reactor . | . . . Propulsion 6 | 3 1 2 Treads . | . . . Leg . | . . . Wheel 3 | 3 . . Hover 3 | . 1 2 Flight . | . . . Utility 2 | 1 1 . Device 1 | . 1 . Storage . | . . . Processor 1 | 1 . . Hackware . | . . . Protection . | . . . Artifact . | . . . Weapon 4 | 2 1 1 Energy Gun 2 | 2 . . Energy Cannon . | . . . Ballistic Gun . | . . . Ballistic Cannon . | . . . Launcher 1 | . . 1 Special Weapon 1 | . 1 . Impact Weapon . | . . . Slashing Weapon . | . . . Piercing Weapon . | . . . Special Melee Weapon . | . . . Unidentified Prototypes . | . . . Parts Lost . | . . . Power . | . . . Propulsion . | . . . Utility . | . . . Weapon . | . . . Highest Loss Streak . | . . . Average Slot Usage (%) 98 | . 100 96 Engine 18 | . 20 16 Wheel 24 | . 27 18 Hover 15 | . 12 21 Device 18 | . 17 20 Processor 1 | . 2 . Energy Gun 13 | . 20 . Launcher 2 | . . 7 Special Weapon 4 | . . 12 Naked Turns . | . . . Heaviest Build 8 | 5 6 8 Greatest Support 33 | 31 25 33 Greatest Overweight (x) . | . . . Average Overweight (x) . | . . . Largest Inventory Capacity 3 | 3 3 3 Average Capacity 3 | 3 3 3 Most Carried 3 | 3 3 3 Average Carried 2 | 2 2 2 Final Capacity 3 | 3 3 3 Final Carried 3 | 3 3 3 Class Distribution -------------------- 100% | Mutant Dominant Class ---------------- Mutant | -10/Materials Mutant | -10/Mines Resources | -11 -10 -10 ----------- Run | Scr Mat Min Matter Collected 468 | 300 40 128 Remotely . | . . . Salvage Created 341 | 42 162 137 Parts 29 | 9 14 6 Haulers Intercepted . | . . . Recyclers Shooed 1 | . . 1 Parts Field Recycled . | . . . Retrieved Matter . | . . . Parts Self-Destructed . | . . . Prevented . | . . . Kills | -11 -10 -10 ------- Run | Scr Mat Min Combat Hostiles Destroyed 7 | . 3 4 Guns 3 | . 3 . AOE 4 | . . 4 Classes Destroyed 6 | 1 3 2 Builder 2 | . 1 1 Tunneler 2 | 2 . . Recycler 2 | . . 2 Watcher 2 | . 2 . Grunt 3 | . 3 . Assembled 4 | . . 4 Best Kill Streak 7 | 2 3 7 Combat Bots Only 3 | . 3 3 Max Kills in Single Turn 2 | 1 1 2 Gunslinging . | . . . Exploded 1 | . . 1 Melee . | . . . Uniques/NPCs Destroyed . | . . . Combat | -11 -10 -10 -------- Run | Scr Mat Min Damage Taken 835 | . 299 536 Core 716 | . 247 469 Absorbed by Shields . | . . . Redirected to Core 391 | . 163 228 Core Remaining (%) 100 | 100 . . Volleys Fired 58 | 12 28 18 Largest 1 | 1 1 1 Hottest 100 | 50 50 100 Shots Fired 58 | 12 28 18 Gun 40 | 12 28 . Cannon . | . . . Launcher 12 | . . 12 Special 6 | . . 6 Kinetic . | . . . Thermal 46 | 12 28 6 Explosive 12 | . . 12 Electromagnetic . | . . . Robot Hit Streak 6 | 3 6 2 Robot Miss Streak 4 | 2 2 4 Penetration Max . | . . . Secondary Targets . | . . . Shots Hit Robots 30 | 8 18 4 Core Hits 22 | 2 9 11 Critical Hits . | . . . Critical Kills . | . . . Critical Parts Destroyed . | . . . Melee Attacks . | . . . Impact . | . . . Slashing . | . . . Piercing . | . . . Sneak Attacks . | . . . Combat Hostiles . | . . . Follow-up Attacks . | . . . Damage Inflicted 975 | 113 271 591 Guns 384 | 113 271 . Cannons . | . . . Explosions 591 | . . 591 Melee . | . . . Ramming . | . . . Kinetic . | . . . Thermal 384 | 113 271 . Explosive 591 | . . 591 Electromagnetic . | . . . Impact . | . . . Slashing . | . . . Piercing . | . . . Highest Corruption . | . . . Average Corruption . | . . . Corruption Purged . | . . . Overload Shots . | . . . Overflow Damage 51 | . . 51 Projectiles . | . . . Explosions 51 | . . 51 Melee . | . . . Knockbacks . | . . . Impact . | . . . Kinetic . | . . . Secondary . | . . . Self-Inflicted Damage 158 | . . 158 Shots 4 | . . 4 Rammed . | . . . Targets Rammed . | . . . Kicked . | . . . Crushed . | . . . Highest Temperature 260 | 60 260 20 Average Temperature 59 | 23 92 11 Received Heat Transfer 214 | . 174 40 Siege Activations . | . . . Robots Corrupted . | . . . Combat Hostiles . | . . . Parts Fried . | . . . Impact Corruptions . | . . . Robots Melted . | . . . Combat Hostiles . | . . . Parts Melted 3 | . 3 . Heat Transferred 1147 | 333 814 . Parts Sabotaged . | . . . Parts Stolen . | . . . Parts Stripped . | . . . Power Chain Reactions . | . . . Missiles Intercepted . | . . . Alert | -11 -10 -10 ------- Run | Scr Mat Min Peak Influence 120 | 10 120 76 Average Influence 53 | 2 72 53 Maximum Alert Level . | . . . Low Security (%) 100 | 100 100 100 Level 1 . | . . . Level 2 . | . . . Level 3 . | . . . Level 4 . | . . . Level 5 . | . . . High Security . | . . . Max Security . | . . . Squads Dispatched 2 | . 2 . Investigation 1 | . 1 . Extermination . | . . . Reinforcement 1 | . 1 . Assault . | . . . Garrison . | . . . Intercept . | . . . Construction Impeded . | . . . Haulers Reinforced . | . . . Stealth | -11 -10 -10 --------- Run | Scr Mat Min Distress Signals . | . . . Communications Jammed . | . . . Distress Signals . | . . . Times Spotted 18 | . 10 8 Peak Tracking Total 5 | . 5 4 Tactical Retreats . | . . . Traps | -11 -10 -10 ------- Run | Scr Mat Min Traps Triggered 1 | . 1 . Indirectly . | . . . Trap Hack Attempts . | . . . Triggered . | . . . Disarmed . | . . . Reprogrammed . | . . . Reused . | . . . Traps Extracted . | . . . Installed . | . . . Triggered . | . . . Machines | -11 -10 -10 ---------- Run | Scr Mat Min Machines Disabled 1 | . . 1 Max in Single Turn 1 | . . 1 Machines Sabotaged . | . . . Garrisons Compromised . | . . . Overloaded Fab Kills . | . . . Fab Network Shutdowns . | . . . Hacking | -11 -10 -10 --------- Run | Scr Mat Min Machines Accessed 1 | . 1 . Terminals 1 | . 1 . Fabricators . | . . . Repair Stations . | . . . Recycling Units . | . . . Scanalyzers . | . . . Garrison Access . | . . . Total Hacks 4 | . 4 . Successful 1 | . 1 . Failed 3 | . 3 . Catastrophic 1 | . 1 . Database Lockouts . | . . . Manual 3 | . 3 . Terminals 4 | . 4 . Fabricators . | . . . Repair Stations . | . . . Recycling Units . | . . . Scanalyzers . | . . . Garrison Access . | . . . Terminal Hacks . | . . . Fabricator Hacks . | . . . Repair Station Hacks . | . . . Recycling Unit Hacks . | . . . Scanalyzer . | . . . Garrison Access Hacks . | . . . Unauthorized Hacks 1 | . 1 . Terminals 1 | . 1 . Assimilate 1 | . 1 . Fabricators . | . . . Repair Stations . | . . . Recycling Units . | . . . Scanalyzers . | . . . Garrison Access . | . . . Data Cores Recovered . | . . . Used . | . . . Hacking Detections 1 | . 1 . Full Trace Events 1 | . 1 . Feedback Events . | . . . Feedback Blocked . | . . . Robot Schematics Acquired . | . . . Robots Built . | . . . Matter . | . . . Time . | . . . Total Robot Build Rating . | . . . Part Schematics Acquired . | . . . Parts Built . | . . . Matter . | . . . Time . | . . . Total Part Build Rating . | . . . Parts Repaired . | . . . Time . | . . . Parts Recycled . | . . . Recycled Matter . | . . . Retrieved Matter . | . . . Retrieved Components . | . . . Parts Scanalyzed . | . . . Part Schematics Acquired . | . . . Parts Damaged . | . . . Bothacking | -11 -10 -10 ------------ Run | Scr Mat Min Used RIF Installer . | . . . Robots Hacked . | . . . Non-combat . | . . . Combat . | . . . Robot Hacks Applied . | . . . Relay Couplers Released . | . . . Robots Rewired . | . . . Allies Hacked . | . . . Hacks Repelled . | . . . Allies | -11 -10 -10 -------- Run | Scr Mat Min Total Allies . | . . . Largest Group . | . . . Highest-Rated Group . | . . . Highest-Rated Ally . | . . . Total Orders . | . . . Ally Attacks . | . . . Total Damage . | . . . Kills . | . . . Allies Corrupted . | . . . Allies Melted . | . . . Intel | -11 -10 -10 ------- Run | Scr Mat Min Robot Analysis Total . | . . . Derelict Logs Recovered . | . . . Drone Launches . | . . . Drone Recoveries . | . . . Exploration | -11 -10 -10 ------------- Run | Scr Mat Min Turns Passed 472 | 98 249 125 Spaces Moved 374 | 68 218 88 Core 4 | 4 . . Treads . | . . . Legs . | . . . Wheels 349 | 64 215 70 Hover 21 | . 3 18 Flight . | . . . Fastest Speed 50 | 50 65 66 Average Speed 81 | 86 79 80 Slowest Speed 90 | 90 80 85 Overloaded Moves . | . . . Propulsion Burnouts . | . . . Robots Hopped . | . . . Cave-ins Triggered . | . . . Exploration Rate (%) 19 | 4 28 25 Regions Visited 2 Branch Regions 1 Pre-discovered Areas . | . . . Known Exits Taken . | . . . Unknown Exits Taken 2 | 1 1 . Scrap Searched . | . . . Spaces Dug 6 | . . 6 Terrain Destroyed 101 | . . 101 Melee . | . . . Projectile 6 | . . 6 AOE 95 | . . 95 Actions | -11 -10 -10 --------- Run | Scr Mat Min Total 473 | 94 265 114 Wait 5 | . 4 1 Move 372 | 67 217 88 Hop . | . . . Pick Up 11 | 7 3 1 Fast Attach 3 | 1 1 1 Attach 5 | 4 1 . Detach . | . . . Swap 6 | 2 2 2 Drop 8 | 1 4 3 Fire 58 | 12 28 18 Melee . | . . . Ram . | . . . Kick . | . . . Crush . | . . . Escape Stasis . | . . . Rewire . | . . . Trap . | . . . Miscellaneous 5 | . 5 . Route ------- -11/Scrapyard -10/Materials -10/Mines History --------- Turn | Location | Event 1 | -11/Scrapyard | Upgraded with Propulsion slot (x1) 31 | -11/Scrapyard | Discovered new exit (range 15) 99 | -11/Scrapyard | Entered Materials 119 | -10/Materials | Discovered new exit (range 15) 303 | -10/Materials | Build established: Mutant 348 | -10/Materials | Entered Mines 355 | -10/Mines | Received a Rocket Launcher from a helpful Derelict 397 | -10/Mines | Assembled infested the area 439 | -10/Mines | Core integrity fell below 50% 454 | -10/Mines | Core integrity fell below 20% 473 | -10/Mines | Destroyed self with Rocket Launcher Last Messages --------------- 00453_ as-47977 destroyed. 00454_ Lgt. Ion Engine severed. 00455_ The unstable cave ceiling collapses. 00455_ Acquired 33 matter. 00456_ The unstable cave ceiling collapses. 00456_ Destroyed Asb. Blade. 00456_ as-81864 destroyed. 00457_ The unstable cave ceiling collapses. 00463_ U-05 Engineer lays Concrete. 00466_ Dropped Wheel. 00466_ U-05 Engineer lays Concrete. 00466_ Acquired Hover Unit. 00467_ U-05 Engineer lays Concrete. 00467_ R-06 Scavenger collects Lgt. Ion Engine. 00468_ U-05 Engineer lays Concrete. 00469_ The unstable cave ceiling collapses. 00469_ U-05 Engineer lays Concrete. 00472_ U-05 Engineer builds a Wall. 00472_ R-06 Scavenger collects Imp. Light Armor Plating. 00473_ Destroyed Asb. Hover Unit. Map ----- +----------------------------------------------------+ | ?????????????????????????????????????????????????? | | ?????????????????????????????????????????????????? | | ?????????????????????????????????????????????????? | | ?????????????????????????????????????????????????? | | ?????????????????????????????????????????????????? | | ?????????????????????????????????????????????????? | | ?????????????????????????????????????????????????? | | ???????????????????????? % ????????????????????? | | ???????????????????????# ????????????????????? | | ?????????????????????? ???????????????????? | | ???????????????????????* % ??????????###??????? | | ?????????????????????##%! #?????????##"#??????? | | ??????????????????# =! ?????????## ##?????? | | ?????????????###??# =%! ????###### #?????? | | ??????????? ## ### * #???## #??#### | | ??????????? # a ##### #### | | ?????????? ; | | ??????????? # # | | ??????????# ## ####### | | ???????????# ## ## #?????## | | ???????????" = # ### #?????## | | ???????????# #?# #?????# | | ??????????## #?# #?????? | | ??????????# "# # a ### ###?## #????? | | ?????????? ;;;;# = # #???## #???? | | ?????????????????# @ # #????# #???? | | ?????????????????# r ##????## ##???? | | ?????????????????# ### ##???????####????? | | ?????????????????# r # #??##????????????????? | | ?????????????????## #????????????????????? | | ??????????????????## #????????????????????? | | ???????????????????# # #????????????????????? | | ???????????????????# u ##????????????????????? | | ???????????????????### #?????????????????????? | | ?????????????????????# #????????????????????? | | ?????????????????????# """ #????????????????????? | | ?????????????????????# """ #????????????????????? | | ????????????????????? """ ????????????????????? | | ????????????????????? ???????????????????? | | ????????????????????## ??????????????????? | | ?????????????????????## #?# ?????????????????? | | ???????????????????????????# ????????????????? | | ???????????????????????????? #???????????????? | | ???????????????????????????? #????????????????? | | ?????????????????????????????????????????????????? | | ?????????????????????????????????????????????????? | | ?????????????????????????????????????????????????? | | ?????????????????????????????????????????????????? | | ?????????????????????????????????????????????????? | | ?????????????????????????????????????????????????? | +----------------------------------------------------+ Best States ------------- Heat Dissipation 25 Energy Generation 10 Energy Capacity 125 Matter Stores 350 Matter Capacity 350 Sight Range 16 Terrain Scan Density 60 Resistance: KI 5 Resistance: TH 5 Evasion (%) 52 Offensive Hacking 5 Item Schematics ----------------- None Robot Schematics ------------------ None Fabricated ------------ Nothing Alien Tech Used ----------------- None Achievements -------------- None Challenges ------------ None RPGLIKE | -11 -10 -10 --------- Run | Scr Mat Min Levels Raised . | . . . XP Earned 4045 | 3000 470 575 XP Spent 2800 | 2800 . . Upgrades 9 | 9 . . Propulsion Slot 1 | 1 . . Matter Storage 1 | 1 . . Mass Support 1 | 1 . . Inventory Capacity 3 | 3 . . Hack Attack % 1 | 1 . . KI Resistance % 1 | 1 . . TH Resistance % 1 | 1 . . Protomatter Created 37 | . 37 . Integrity Restored 111 | . 111 . Core 111 | . 111 . Protomatter Decayed . | . . . Game ------ Seed NeutronImpulseLog Manual? 0 Play Time 00:08:46 Cumulative 58.6 hours Start 2020.07.28 @ 01:27:17 End 2020.07.28 @ 01:34:12 Sessions 1 Manual Loads 0 Difficulty Rogue Special Mode Winter2019/RPGLIKE Game No. 85 Rogue 85 Adventurer 0 Explorer 0 Win Type - Total 0 Types 0/0/0/0/0/0/0 Lore% 34 Gallery% 43 Achievement% 35 Wizard Run 0 Options --------- ASCII 0 Keyboard 0 Movement Mouse Keybinds 0 Fullscreen 2 Font 18/X11 Map View 76x50 Tactical HUD 1 Map Filters NONE Filters NONE Steam 1 RUN: 7e454dd4-8a94-4a44-a429-a98466f61f02